bitfinex-derivatives/quotes_SOLF0:USTF0_20250425
["timestamp","ask_amount","ask_price","bid_price","bid_amount"]
[1745599300957,6.5537,152.48,152.44,3.9084]
[1745599301360,13.86944212,152.49,152.44,3.9084]
[1745599301659,6.5537,152.48,152.44,3.9084]
[1745599301959,6.554,152.47,152.43,26.54]
[1745599302158,13.86944212,152.49,152.43,26.54]
[1745599302555,6.5546,152.46,152.43,26.54]
[1745599303557,6.5548,152.45,152.39,3.9684]
[1745599303763,13.86944212,152.49,152.4,26.52]
[1745599303962,13.86944212,152.47,152.4,26.52]
[1745599304766,13.86944212,152.45,152.4,26.52]
[1745599305863,6.5559,152.43,152.4,26.52]
[1745599306062,13.86944212,152.45,152.4,26.52]
[1745599306564,6.5556,152.43,152.4,26.52]
[1745599308460,6.5553,152.44,152.4,33.0768]
[1745599308665,13.86944212,152.45,152.4,26.52]
[1745599308960,6.5552,152.44,152.4,33.0766]
[1745599309260,13.86944212,152.46,152.4,26.52]
[1745599309464,26.52,152.54,152.44,13.86944212]
[1745599309660,13.86944212,152.53,152.45,26.52]
[1745599310266,20.42104212,152.53,152.47,6.5537]
[1745599310461,13.86944212,152.53,152.47,6.5537]
[1745599310666,8.95408956,152.53,152.47,6.5537]
[1745599310966,6.552,152.52,152.47,6.5537]
[1745599311158,8.95408956,152.53,152.45,26.52]
[1745599311363,15.50578956,152.53,152.45,26.52]
[1745599311657,15.50578956,152.53,152.46,3.9186]
[1745599312166,15.50578956,152.53,152.47,6.5535]
[1745599312365,33.0712,152.54,152.46,17.78804212]
[1745599312566,15.91264212,152.55,152.47,6.52103033]
[1745599312766,15.91264212,152.55,152.48,13.07423033]
[1745599312967,6.5517,152.53,152.49,6.52103033]
[1745599313167,15.91264212,152.55,152.5,6.52103033]
[1745599313368,6.5517,152.52,152.51,6.52103033]
[1745599315768,13.86944212,152.53,152.45,26.52]
[1745599316068,2.0432,152.55,152.46,6.5543]
[1745599316362,13.86944212,152.54,152.45,26.52]
[1745599316568,13.86944212,152.54,152.47,6.5536]
[1745599318167,6.5518,152.52,152.48,6.5534]
[1745599318771,6.5522,152.51,152.47,6.5537]
[1745599319274,6.5527,152.5,152.46,6.5541]
[1745599319472,6.5527,152.5,152.45,40.38944212]
[1745599319773,6.5524,152.51,152.47,6.5537]
[1745599319965,13.86944212,152.54,152.45,40.38944212]
[1745599320163,13.86944212,152.52,152.45,40.38944212]
[1745599320564,13.86944212,152.52,152.45,26.52]
[1745599320962,13.86944212,152.52,152.45,33.0747]
[1745599321874,13.86944212,152.48,152.43,26.52]
[1745599322574,13.86944212,152.46,152.43,26.52]
[1745599322969,13.86944212,152.46,152.4,26.52]
[1745599323474,6.5553,152.44,152.4,33.0767]
[1745599323975,13.86944212,152.46,152.4,26.52]
[1745599324175,6.5552,152.45,152.4,26.52]
[1745599324368,13.86944212,152.46,152.38,476.1629]
[1745599324573,6.5559,152.43,152.39,26.52]
[1745599324774,13.86944212,152.42,152.39,26.52]
[1745599324974,13.86944212,152.46,152.39,26.52]
[1745599325273,6.5553,152.44,152.4,6.5566]
[1745599326078,6.5547,152.46,152.39,26.52]
[1745599326273,26.52,152.49,152.4,17.85664212]
[1745599326473,13.86944212,152.5,152.4,17.85664212]
[1745599326674,6.5536,152.48,152.44,6.555]
[1745599326971,13.86944212,152.5,152.44,33.075]
[1745599327169,6.5532,152.49,152.45,6.5545]
[1745599327372,40.38944212,152.52,152.44,26.52]
[1745599327676,6.5529,152.5,152.46,6.5541]
[1745599329775,40.38944212,152.52,152.44,40.38944212]
[1745599329981,6.5519,152.52,152.48,6.5534]
[1745599330481,6.5522,152.51,152.47,6.5538]
[1745599330783,13.86944212,152.53,152.44,40.38944212]
[1745599331077,13.86944212,152.49,152.44,26.52]
[1745599331380,13.86944212,152.47,152.44,26.52]
[1745599331578,13.86944212,152.45,152.4,3.9872]
[1745599331971,13.86944212,152.41,152.36,1.8857]
[1745599332175,13.86944212,152.41,152.36,26.48]
[1745599332373,5.9716,152.47,152.36,26.48]
[1745599332575,20.42584212,152.42,152.37,6.5582]
[1745599333282,6.5558,152.43,152.38,6.5574]
[1745599333581,22.19913909,152.46,152.38,6.5574]
[1745599334281,6.5559,152.43,152.38,6.5574]
[1745599334986,6.5559,152.43,152.39,6.5573]
[1745599335681,6.5554,152.44,152.39,6.5573]
[1745599335883,22.19913909,152.46,152.38,6.5576]
[1745599336183,6.5559,152.43,152.36,26.48]
[1745599336779,6.5552,152.45,152.36,26.48]
[1745599337081,1.953,152.47,152.36,48.67913909]
[1745599337483,6.5545,152.46,152.36,48.67913909]
[1745599338285,1.953,152.47,152.36,48.67913909]
[1745599338882,1.953,152.47,152.37,6.98786112]
[1745599339088,1.953,152.47,152.38,6.98786112]
[1745599339289,6.5552,152.45,152.38,6.98786112]
[1745599339482,22.19913909,152.52,152.39,6.98786112]
[1745599339681,140.56191006,152.56,152.42,22.19913909]
[1745599339887,140.56191006,152.56,152.43,2.0328]
[1745599340089,140.56191006,152.56,152.44,26.5]
[1745599340384,6.5516,152.53,152.48,6.5535]
[1745599340685,6.5516,152.53,152.48,33.0535]
[1745599341086,6.5511,152.54,152.49,6.553]
[1745599341885,6.5506,152.55,152.48,26.5]
[1745599342288,6.5506,152.55,152.49,6.5528]
[1745599343386,8.6165,152.57,152.48,26.5]
[1745599343587,8.6165,152.57,152.49,1.9808]
[1745599343887,2.0667,152.57,152.49,1.9808]
[1745599344197,6.5503,152.56,152.49,1.9808]
[1745599344486,2.0667,152.57,152.49,1.9808]
[1745599344687,6.5507,152.55,152.5,6.5523]
[1745599344887,6.5507,152.55,152.49,1.9808]
[1745599345185,48.69913909,152.59,152.49,1.9808]
[1745599345390,48.69913909,152.59,152.5,1.8923]
[1745599345887,6.5504,152.56,152.5,8.4448]
[1745599346087,6.5504,152.56,152.5,1.8923]
[1745599346892,6.5504,152.56,152.51,6.5519]
[1745599347685,48.69913909,152.59,152.52,6.5514]
[1745599347882,48.69913909,152.59,152.52,33.0314]
[1745599348187,6.5498,152.57,152.52,26.48]
[1745599348588,48.69913909,152.59,152.52,26.48]
[1745599349992,6.5507,152.55,152.52,26.48]
[1745599351885,6.5511,152.54,152.52,26.48]
[1745599352386,6.5511,152.54,152.49,28.4608]
[1745599352595,6.5514,152.53,152.49,35.0137]
[1745599352894,48.69913909,152.59,152.49,35.0137]
[1745599353094,22.19913909,152.56,152.49,28.4608]
[1745599353297,6.5511,152.54,152.49,35.0136]
[1745599353999,6.5511,152.54,152.5,6.5525]
[1745599356199,13.85292338,152.56,152.51,6.5519]
[1745599356200,6.5507,152.55,152.51,6.5519]
[1745599356398,13.85292338,152.58,152.49,42.31372338]
[1745599356899,6.5503,152.56,152.51,6.552]
[1745599357203,6.5503,152.56,152.49,42.31372338]
[1745599357599,6.5503,152.56,152.52,6.5517]
[1745599358501,6.5505,152.55,152.52,6.5517]
[1745599358700,13.85292338,152.58,152.49,42.31372338]
[1745599358899,15.88172338,152.6,152.5,1.9961]
[1745599359103,6.5494,152.58,152.51,13.85292338]
[1745599359295,15.88172338,152.6,152.54,6.5507]
[1745599359599,6.5495,152.58,152.54,6.5507]
[1745599362905,6.5497,152.57,152.54,6.5507]
[1745599363111,15.88172338,152.6,152.53,26.46]
[1745599363299,13.85292338,152.58,152.53,26.46]
[1745599363499,6.5498,152.57,152.53,26.46]
[1745599363699,13.85292338,152.58,152.53,26.46]
[1745599364005,6.5498,152.57,152.53,26.46]
[1745599364305,6.5498,152.57,152.53,33.0113]
[1745599364504,6.5498,152.57,152.53,26.46]
[1745599364906,6.5498,152.57,152.53,33.0111]
[1745599366306,6.5493,152.58,152.54,6.5506]
[1745599367007,6.5489,152.59,152.55,6.5504]
[1745599367607,6.5485,152.6,152.53,40.31292338]
[1745599367806,17.82082338,152.64,152.55,13.85292338]
[1745599368005,15.84512338,152.64,152.55,13.85292338]
[1745599368204,6.5477,152.62,152.58,6.5487]
[1745599368404,6.5477,152.62,152.58,33.0087]
[1745599368605,15.84512338,152.64,152.58,33.0087]
[1745599368808,6.5477,152.62,152.58,33.0087]
[1745599369126,6.5477,152.62,152.59,6.58139561]
[1745599369408,13.85292338,152.66,152.6,6.58139561]
[1745599369599,13.85292338,152.66,152.61,6.58139561]
[1745599369803,13.85292338,152.66,152.62,6.58139561]
[1745599370104,6.5464,152.65,152.63,6.58139561]
[1745599370298,13.85292338,152.66,152.64,6.58139561]
[1745599370505,13.85292338,152.66,152.65,6.58139561]
[1745599370906,20.39892338,152.66,152.65,6.58139561]
[1745599371406,6.546,152.66,152.65,6.58139561]
[1745599373112,6.5481,152.61,152.58,26.44]
[1745599373305,13.85292338,152.63,152.58,26.44]
[1745599373612,6.5477,152.62,152.58,26.44]
[1745599374014,13.85292338,152.63,152.58,26.44]
[1745599374215,6.5486,152.6,152.58,26.44]
[1745599374410,13.85292338,152.63,152.58,26.44]
[1745599375415,6.5485,152.6,152.58,26.44]
[1745599376512,6.5487,152.59,152.58,26.44]
[1745599377019,6.5496,152.57,152.53,2.0468]
[1745599377214,13.85292338,152.59,152.54,26.44]
[1745599377612,6.5498,152.57,152.54,26.44]
[1745599378917,6.5492,152.58,152.54,26.44]
[1745599379415,13.85292338,152.61,152.54,26.44]
[1745599379716,6.5491,152.59,152.55,6.5504]
[1745599380714,6.5492,152.58,152.54,32.9907]
[1745599381017,13.85292338,152.61,152.54,26.44]
[1745599381214,6.5499,152.57,152.54,26.44]
[1745599383622,13.85292338,152.59,152.54,26.44]
[1745599384522,6.5503,152.56,152.54,26.44]
[1745599384823,13.85292338,152.59,152.54,26.44]
[1745599385123,6.5494,152.58,152.54,26.44]
[1745599385423,13.85292338,152.59,152.54,26.44]
[1745599385923,6.5494,152.58,152.54,26.44]
[1745599386120,13.85292338,152.59,152.54,26.44]
[1745599386422,6.5497,152.57,152.54,26.44]
[1745599387723,6.5501,152.56,152.54,26.44]
[1745599388524,6.5498,152.57,152.54,26.44]
[1745599388721,13.85292338,152.59,152.54,26.44]
[1745599389026,6.5503,152.56,152.54,26.44]
[1745599389227,13.85292338,152.59,152.54,26.44]
[1745599389723,6.5499,152.57,152.54,26.44]
[1745599392827,6.5502,152.56,152.54,26.44]
[1745599393926,20.40272338,152.57,152.54,26.44]
[1745599395328,8.86322327,152.56,152.54,26.44]
[1745599395724,8.86322327,152.58,152.54,26.44]
[1745599396428,8.86322327,152.6,152.56,8.86322327]
[1745599396627,8.86322327,152.62,152.58,8.86322327]
[1745599396821,8.86322327,152.62,152.59,6.5486]
[1745599397225,8.86322327,152.61,152.58,26.42]
[1745599397522,8.86322327,152.61,152.58,32.9689]
[1745599398227,8.86322327,152.61,152.58,26.42]
[1745599398427,8.86322327,152.62,152.59,7.07025247]
[1745599398729,8.86322327,152.62,152.6,13.61835247]
[1745599398933,8.86322327,152.62,152.61,7.07025247]
[1745599399230,13.83651846,152.65,152.61,7.07025247]
[1745599399426,26.42,152.71,152.62,26.42]
[1745599399728,13.83651846,152.7,152.62,40.25651846]
[1745599399932,20.37981846,152.72,152.67,6.5452]
[1745599400128,13.83651846,152.72,152.67,6.5452]
[1745599400329,13.83651846,152.72,152.66,26.42]
[1745599400521,13.83651846,152.7,152.66,26.42]
[1745599400721,13.83651846,152.68,152.64,26.42]
[1745599400925,13.83651846,152.68,152.64,32.9664]
[1745599401529,13.83651846,152.68,152.64,26.42]
[1745599402137,6.5454,152.67,152.64,26.42]
[1745599403032,13.83651846,152.66,152.6,26.42]
[1745599403236,13.83651846,152.64,152.6,26.42]
[1745599403733,20.38341846,152.64,152.6,26.42]
[1745599405535,6.547,152.63,152.6,26.42]
[1745599406037,20.38331846,152.64,152.6,26.42]
[1745599406834,6.5471,152.63,152.6,26.42]
[1745599407537,20.38331846,152.64,152.6,26.42]
[1745599407739,13.83651846,152.64,152.6,26.42]
[1745599408037,6.5473,152.63,152.6,26.42]
[1745599408337,13.83651846,152.64,152.6,26.42]
[1745599408636,6.5474,152.63,152.6,26.42]
[1745599408836,13.83651846,152.64,152.6,26.42]
[1745599409040,6.5471,152.63,152.6,26.42]
[1745599409239,6.5471,152.63,152.6,32.9683]
[1745599409438,13.83651846,152.64,152.6,32.9683]
[1745599409736,20.38351846,152.64,152.6,32.9683]
[1745599409936,13.83651846,152.62,152.6,26.42]
[1745599410137,6.5479,152.61,152.6,26.42]
[1745599410330,13.83651846,152.64,152.6,26.42]
[1745599410838,6.5476,152.62,152.6,26.42]
[1745599411440,13.83651846,152.64,152.6,26.42]
[1745599411940,6.5471,152.63,152.6,26.42]
[1745599412940,20.38331846,152.64,152.6,32.9682]
[1745599415843,13.83651846,152.64,152.61,6.5476]
[1745599416040,6.5464,152.65,152.61,6.5476]
[1745599416243,13.83651846,152.66,152.6,26.42]
[1745599417445,13.83651846,152.66,152.61,1.9649]
[1745599417644,6.5462,152.65,152.61,8.5125]
[1745599418143,13.83651846,152.66,152.61,8.5125]
[1745599419047,13.83651846,152.66,152.61,1.9649]
[1745599419246,13.83651846,152.64,152.6,26.42]
[1745599419547,8.85673008,152.61,152.6,26.42]
[1745599419745,15.40463008,152.61,152.6,26.42]
[1745599421346,6.5479,152.61,152.6,26.42]
[1745599422552,6.5477,152.62,152.6,26.42]
[1745599423250,6.5479,152.61,152.6,26.42]
[1745599423746,6.5479,152.61,152.57,504.6295]
[1745599424650,6.5477,152.62,152.58,6.5491]
[1745599424950,13.8393753,152.63,152.57,498.08]
[1745599425253,6.5481,152.61,152.57,504.6293]
[1745599425444,13.8393753,152.61,152.57,498.08]
[1745599425648,13.8393753,152.61,152.56,28.3656]
[1745599426052,6.5485,152.6,152.56,28.3656]
[1745599426554,6.5485,152.6,152.56,34.9156]
[1745599427154,6.5485,152.6,152.56,28.3656]
[1745599427354,6.5488,152.59,152.56,26.38]
[1745599427556,13.8393753,152.61,152.56,26.38]
[1745599428860,13.8393753,152.61,152.57,6.5493]
[1745599431162,13.8393753,152.61,152.56,26.38]
[1745599431366,13.8393753,152.63,152.56,26.38]
[1745599431567,13.8393753,152.63,152.57,1.9488]
[1745599431864,13.8393753,152.65,152.57,1.9488]
[1745599432464,13.8393753,152.67,152.57,1.9488]
[1745599433065,13.8393753,152.67,152.63,6.5467]
[1745599433564,20.3847753,152.67,152.63,6.5467]
[1745599435969,13.8393753,152.67,152.63,6.5467]
[1745599436165,13.8393753,152.67,152.61,26.38]
[1745599436969,20.3846753,152.67,152.61,26.38]
[1745599437164,13.8393753,152.67,152.61,26.38]
[1745599437565,20.3847753,152.67,152.63,6.5468]
[1745599437863,30.3596,152.69,152.61,26.38]
[1745599437864,13.8393753,152.65,152.61,26.38]
[1745599438064,13.8393753,152.65,152.62,6.5473]
[1745599438472,20.3855753,152.65,152.61,32.9277]
[1745599439071,6.5466,152.64,152.61,26.38]
[1745599439267,13.8393753,152.63,152.59,1.9846]
[1745599440074,13.8393753,152.63,152.61,6.5478]
[1745599441174,5.65452272,152.63,152.61,6.5478]
[1745599441369,8.85636937,152.62,152.61,6.5478]
[1745599442374,30.3596,152.69,152.61,6.5478]
[1745599442574,8.85636937,152.63,152.59,1.9846]
[1745599442872,8.85636937,152.62,152.59,1.9846]
[1745599443272,8.85636937,152.62,152.6,6.548]
[1745599443575,8.85636937,152.62,152.59,1.9846]
[1745599443774,8.85636937,152.61,152.6,6.5483]
[1745599444876,8.85636937,152.62,152.61,6.5479]
[1745599445176,8.85636937,152.63,152.59,1.9846]
[1745599445376,30.3596,152.69,152.63,6.5467]
[1745599445377,8.85636937,152.65,152.63,6.5467]
[1745599445577,8.85636937,152.66,152.63,6.5467]
[1745599445871,8.85636937,152.67,152.62,35.23636937]
[1745599446077,8.85636937,152.67,152.65,6.5459]
[1745599446279,8.85636937,152.67,152.62,35.23636937]
[1745599446576,8.85636937,152.66,152.64,6.5463]
[1745599446875,8.85636937,152.65,152.64,6.5463]
[1745599447779,8.85636937,152.65,152.63,6.5469]
[1745599448180,0.67272652,152.65,152.64,6.79669669]
[1745599448482,0.67272652,152.65,152.64,13.34329669]
[1745599450577,0.67272652,152.65,152.64,6.79669669]
[1745599450881,8.85636937,152.65,152.59,1.9846]
[1745599451186,8.85636937,152.61,152.6,6.5483]
[1745599451379,0.67144415,152.61,152.6,6.5483]
[1745599452485,0.67144415,152.61,152.59,8.5331]
[1745599452783,0.67144415,152.61,152.59,1.9846]
[1745599453082,0.67144415,152.61,152.6,6.5483]
[1745599453887,8.85636937,152.62,152.6,6.5483]
[1745599454082,8.85636937,152.61,152.6,6.5483]
[1745599455786,8.85636937,152.61,152.59,6.5485]
[1745599455986,8.85636937,152.6,152.58,26.34]
[1745599456488,3.8132,152.67,152.58,26.34]
[1745599456688,8.85636937,152.61,152.58,26.34]
[1745599457086,6.547,152.64,152.59,6.5485]
[1745599457287,8.85636937,152.61,152.58,26.34]
[1745599457490,8.85636937,152.61,152.59,6.5484]
[1745599457998,8.85636937,152.61,152.58,26.34]
[1745599458289,3.94492057,152.61,152.6,6.5483]
[1745599461396,6.5464,152.65,152.61,6.5476]
[1745599461691,8.85636937,152.62,152.61,6.5476]
[1745599468696,8.85636937,152.62,152.58,26.34]
[1745599468994,8.85636937,152.6,152.58,26.34]
[1745599469398,8.85636937,152.6,152.59,6.5487]
[1745599469797,8.85636937,152.61,152.58,26.34]
[1745599469991,8.85636937,152.61,152.6,6.548]
[1745599470193,8.85636937,152.62,152.58,35.19636937]
[1745599471397,0.67137388,152.62,152.58,35.19636937]
[1745599471598,8.85636937,152.61,152.58,26.34]
[1745599472101,8.85636937,152.61,152.6,6.5481]
[1745599479801,6.5468,152.64,152.61,6.5478]
[1745599480001,8.85636937,152.62,152.61,6.5478]
[1745599481398,0.67134366,152.62,152.61,6.5478]
[1745599483501,8.85636937,152.66,152.61,8.85636937]
[1745599483703,8.85636937,152.66,152.62,26.3]
[1745599483903,8.85636937,152.66,152.62,35.15636937]
[1745599485008,8.85636937,152.65,152.62,26.3]
[1745599485305,8.85636937,152.65,152.63,6.5467]
[1745599485500,3.94634608,152.64,152.62,26.3]
[1745599485806,26.3,152.71,152.63,6.50730094]
[1745599486004,26.3,152.71,152.64,6.50730094]
[1745599486206,26.3,152.71,152.65,6.50730094]
[1745599486406,26.3,152.71,152.66,6.50730094]
[1745599486607,26.3,152.71,152.62,6.5472]
[1745599486807,6.546,152.66,152.62,6.5472]
[1745599487009,8.85636937,152.63,152.62,6.5472]
[1745599488811,8.85636937,152.63,152.59,35.15636937]
[1745599489007,8.85636937,152.62,152.59,26.3]
[1745599489208,8.85636937,152.62,152.59,32.8485]
[1745599490414,8.85636937,152.63,152.59,26.3]
[1745599490707,8.85636937,152.65,152.6,8.85636937]
[1745599491109,8.85636937,152.65,152.63,6.5468]
[1745599491510,0.67279198,152.65,152.63,6.5468]
[1745599491807,0.67279198,152.65,152.62,6.5472]
[1745599492013,7.21899198,152.65,152.62,6.5472]
[1745599492213,8.85636937,152.64,152.62,6.5472]
[1745599493308,6.5459,152.66,152.62,8.85636937]
[1745599493309,8.85636937,152.66,152.62,8.85636937]
[1745599493513,8.85636937,152.67,152.63,35.15636937]
[1745599493715,8.85636937,152.68,152.66,6.5457]
[1745599495619,3.94683185,152.68,152.66,6.5457]
[1745599496219,3.94683185,152.68,152.65,6.546]
[1745599497218,8.85636937,152.67,152.64,32.8464]
[1745599497621,3.859,152.72,152.64,26.3]
[1745599497812,8.85636937,152.71,152.66,8.85636937]
[1745599498310,8.85636937,152.71,152.67,6.545]
[1745599498823,15.40026937,152.71,152.67,6.545]
[1745599500717,6.543,152.73,152.67,8.85636937]
[1745599500920,8.85636937,152.72,152.68,8.85636937]
[1745599501422,8.85636937,152.72,152.7,6.544]
[1745599501820,6.543,152.73,152.7,6.544]
[1745599502120,8.85636937,152.73,152.7,6.544]
[1745599502619,15.39916937,152.73,152.69,6.5442]
[1745599502820,8.85636937,152.72,152.68,26.3]
[1745599503012,8.85636937,152.71,152.68,26.3]
[1745599503519,8.85636937,152.69,152.68,26.3]
[1745599505323,15.40016937,152.71,152.68,26.3]
[1745599505524,8.85636937,152.69,152.68,26.3]
[1745599505724,8.85636937,152.69,152.65,30.3732]
[1745599506222,8.85636937,152.69,152.66,6.5455]
[1745599508221,8.85636937,152.69,152.65,32.8461]
[1745599508423,8.85636937,152.68,152.65,32.8461]
[1745599508724,15.40156937,152.68,152.65,26.3]
[1745599509525,15.40156937,152.68,152.65,32.8461]
[1745599510526,8.85636937,152.68,152.65,32.8461]
[1745599510819,8.85636937,152.7,152.65,35.15636937]
[1745599511626,15.40056937,152.7,152.65,35.15636937]
[1745599511825,8.85636937,152.69,152.65,35.15636937]
[1745599512125,8.85636937,152.69,152.67,6.5451]
[1745599512419,8.85636937,152.69,152.65,26.3]
[1745599512624,8.85636937,152.67,152.65,32.846]
[1745599513424,8.85636937,152.67,152.66,6.5457]
[1745599513725,8.85636937,152.67,152.65,26.3]
[1745599514228,8.85636937,152.67,152.62,32.2015]
[1745599514523,8.85636937,152.66,152.63,6.5468]
[1745599514725,8.85636937,152.65,152.63,6.5468]
[1745599514925,6.5457,152.67,152.64,6.5466]
[1745599515125,8.85636937,152.66,152.64,6.5466]
[1745599516426,8.85636937,152.66,152.63,6.5468]
[1745599516629,8.85636937,152.65,152.63,6.5468]
[1745599517131,8.85636937,152.64,152.62,32.8073]
[1745599517332,8.85636937,152.64,152.62,26.26]
[1745599518132,8.85636937,152.65,152.63,6.547]
[1745599518727,8.85636937,152.65,152.62,26.26]
[1745599519035,8.85636937,152.63,152.6,26.26]
[1745599519337,8.85636937,152.62,152.6,32.8081]
[1745599519731,8.85636937,152.62,152.6,26.26]
[1745599519931,8.85636937,152.62,152.61,6.5479]
[1745599520131,8.85636937,152.62,152.6,26.26]
[1745599520433,8.85636937,152.62,152.6,32.8079]
[1745599521234,15.40386937,152.62,152.6,26.26]
[1745599521834,8.85636937,152.62,152.6,32.8082]
[1745599522027,8.85636937,152.61,152.6,32.8082]
[1745599522228,8.85636937,152.61,152.6,26.26]
[1745599523134,8.85636937,152.61,152.59,8.6045]
[1745599523429,8.85636937,152.61,152.59,2.056]
[1745599523835,8.85636937,152.61,152.58,2.0134]
[1745599524135,15.40406937,152.62,152.58,2.0134]
[1745599524335,15.40406937,152.62,152.59,6.5485]
[1745599524535,8.85636937,152.61,152.59,6.5485]
[1745599525034,15.40426937,152.61,152.59,6.5485]
[1745599525339,15.40426937,152.61,152.58,8.5625]
[1745599525929,8.85636937,152.59,152.57,6.5495]
[1745599527135,15.40516937,152.59,152.57,6.5495]
[1745599527739,8.85636937,152.59,152.56,26.26]
[1745599528939,8.85636937,152.59,152.56,32.8098]
[1745599529239,8.85636937,152.58,152.56,26.26]
[1745599529928,8.85636937,152.57,152.54,2.0045]
[1745599530133,8.85636937,152.56,152.54,2.0045]
[1745599530430,8.85636937,152.57,152.56,6.5497]
[1745599535338,28.2275,152.64,152.55,8.85636937]
[1745599535537,8.85636937,152.62,152.58,8.85636937]
[1745599536040,8.85636937,152.62,152.61,6.5479]
[1745599541248,8.85636937,152.64,152.59,8.85636937]
[1745599541749,8.85636937,152.64,152.62,6.5472]
[1745599543050,8.85636937,152.63,152.62,6.5472]
[1745599543552,8.85636937,152.63,152.58,8.85636937]
[1745599543848,8.85636937,152.62,152.58,8.85636937]
[1745599545050,8.85636937,152.62,152.6,6.5479]
[1745599546157,8.85636937,152.63,152.58,8.85636937]
[1745599546452,8.85636937,152.64,152.59,8.85636937]
[1745599546747,8.85636937,152.63,152.58,8.85636937]
[1745599546950,15.40346937,152.63,152.58,8.85636937]
[1745599547750,15.40346937,152.63,152.6,6.548]
[1745599547952,8.85636937,152.62,152.6,6.548]
[1745599548149,15.40416937,152.62,152.57,2.0185]
[1745599548352,8.85636937,152.61,152.59,6.5485]
[1745599548653,8.85636937,152.61,152.57,10.87486937]
[1745599548850,15.40416937,152.62,152.58,8.85636937]
[1745599550053,15.40416937,152.62,152.6,6.548]
[1745599550054,8.85636937,152.62,152.6,6.548]
[1745599551154,15.40386937,152.62,152.6,6.548]
[1745599551452,8.85636937,152.62,152.6,6.548]
[1745599552454,8.85636937,152.61,152.57,10.87486937]
[1745599552654,8.85636937,152.59,152.57,2.0185]
[1745599552855,8.85636937,152.58,152.56,26.26]
[1745599553354,8.85636937,152.58,152.57,6.5492]
[1745599553953,8.85636937,152.58,152.54,9.18474]
[1745599554153,8.85636937,152.57,152.54,9.18474]
[1745599554754,8.85636937,152.57,152.56,6.55]
[1745599555955,8.85636937,152.57,152.54,7.18024]
[1745599556158,8.85636937,152.55,152.54,7.18024]
[1745599556857,6.0867,152.62,152.54,7.18024]
[1745599557154,8.85636937,152.55,152.54,7.18024]
[1745599557455,8.85636937,152.55,152.54,13.73114]
[1745599559757,8.85636937,152.55,152.54,7.18024]
[1745599559957,8.85636937,152.55,152.51,2.0385]
[1745599560153,8.85636937,152.53,152.51,2.0385]
[1745599560756,8.85636937,152.53,152.52,6.5517]
[1745599561263,8.85636937,152.54,152.53,6.5513]
[1745599562357,26.22,152.59,152.54,6.5509]
[1745599562557,8.85636937,152.55,152.54,6.5509]
[1745599564158,8.85636937,152.55,152.53,6.5511]
[1745599564356,8.85636937,152.54,152.53,6.5511]
[1745599567062,8.85636937,152.54,152.52,6.5515]
[1745599567263,8.85636937,152.53,152.52,6.5515]
[1745599568267,6.5503,152.56,152.53,6.5513]
[1745599568463,26.22,152.59,152.5,26.22]
[1745599568657,8.85636937,152.51,152.47,2.0467]
[1745599568967,8.85636937,152.48,152.47,26.24]
[1745599569159,8.85636937,152.48,152.44,26.24]
[1745599569359,8.85636937,152.47,152.46,6.5543]
[1745599571563,8.85636937,152.48,152.47,6.5538]
[1745599571764,8.85636937,152.48,152.44,26.24]
[1745599572066,8.85636937,152.48,152.47,6.5539]
[1745599573763,8.85636937,152.48,152.38,13.1155]
[1745599573963,8.85636937,152.44,152.4,8.85636937]
[1745599574159,8.85636937,152.44,152.39,26.2]
[1745599574468,26.2,152.5,152.42,6.556]
[1745599574661,8.85636937,152.43,152.42,6.556]
[1745599575564,8.85636937,152.46,152.41,8.85636937]
[1745599575765,8.85636937,152.46,152.42,8.85636937]
[1745599576667,8.85636937,152.46,152.45,6.5548]
[1745599581471,8.85636937,152.46,152.43,6.5553]
[1745599581666,8.85636937,152.44,152.39,26.2]
[1745599581970,8.85636937,152.41,152.4,6.5565]